Cogmind - Beta 13 @@@ ROGUE MODE // 2024.04.02 @ 18:59:32 Player: buwwet Result: Destroyed by G-47 Trooper with Particle Gun Performance ------------- Evolutions (2) 1000 Regions Visited (4) 800 Robots Destroyed (53) 265 Value Destroyed (1423) 1423 Prototype IDs (0) 0 Alien Tech Used (0) 0 Bonus (0) 0 TOTAL SCORE: 3488 Bonus ------- None Cogmind --------- Core Integrity 0/550 Matter 176/300 Energy 100/100 System Corruption 0% Temperature Hot (254) Movement Core (1450) Ox28 Location -8/Materials Parts ------- > --- POWER (2) -------- (None) > --- PROPULSION (3) --- (None) > --- UTILITY (3) ------ Huge Storage Unit Propulsion Shielding > --- WEAPON (3) ------- Heavy Particle Cannon > --- INVENTORY (25) --- Light Nuclear Core Datajack Peak State ------------ > --- POWER ------------ Nuclear Core Light Nuclear Core > --- PROPULSION ------- Aluminum Leg Aluminum Leg > --- UTILITY ---------- Medium Storage Unit Improved Medium Armor Plating > --- WEAPON ----------- Plasma Cannon Rocket Launcher Makeshift Sword > --- INVENTORY -------- Ion Engine Light Deuterium Engine Light Nuclear Core Advanced Treads Heavy Particle Cannon Datajack [Rating: 24] Favorites ----------- Power Light Angular Momentum Engine Engine Light Angular Momentum Engine Power Core Light Nuclear Core Propulsion Light Treads Treads Light Treads Leg Aluminum Leg Utility Small Storage Unit Device Seismic Detector Storage Small Storage Unit Protection Power Shielding Weapon Light Cannon Energy Gun Medium Laser Energy Cannon Heavy Particle Cannon Ballistic Gun Heavy Assault Rifle Ballistic Cannon Light Cannon Launcher Rocket Launcher Slashing Weapon Makeshift Sword Special Melee Weapon Datajack Build | -11 -10 -10 -9 -8 ------- Run | Yrd Mat Min Mat Mat Slots Evolved 4 | . . . 2 2 Power 1 | . . . . 1 Propulsion 1 | . . . . 1 Utility 1 | . . . 1 . Weapon 1 | . . . 1 . Parts Attached 50 | 6 2 9 10 23 Power 9 | 1 . 2 1 5 Engine 6 | 1 . 2 . 3 Core 3 | . . . 1 2 Reactor . | . . . . . Propulsion 14 | 2 1 3 3 5 Treads 7 | . . 3 3 1 Leg 7 | 2 1 . . 4 Wheel . | . . . . . Hover . | . . . . . Flight . | . . . . . Utility 12 | 1 1 2 5 3 Device 2 | 1 . . 1 . Storage 5 | . 1 2 1 1 Processor . | . . . . . Hackware . | . . . . . Protection 5 | . . . 3 2 Artifact . | . . . . . Weapon 15 | 2 . 2 1 10 Energy Gun 3 | 2 . . . 1 Energy Cannon 4 | . . . 1 3 Ballistic Gun 1 | . . 1 . . Ballistic Cannon 1 | . . 1 . . Launcher 3 | . . . . 3 Special Weapon . | . . . . . Impact Weapon . | . . . . . Slashing Weapon 2 | . . . . 2 Piercing Weapon . | . . . . . Special Melee Weapon 1 | . . . . 1 Unidentified Prototypes . | . . . . . Parts Lost 23 | . 1 . 3 19 Power 4 | . . . . 4 Propulsion 8 | . . . 2 6 Utility 3 | . . . 1 2 Weapon 8 | . 1 . . 7 Highest Loss Streak 9 | . 1 . 2 9 To Critical Strikes . | . . . . . Average Slot Usage (%) 87 | . 97 100 91 60 Engine 8 | . 14 14 4 2 Core 4 | . . . 6 9 Treads 14 | . . 22 20 2 Leg 8 | . 28 5 . 13 Device 6 | . 14 14 1 1 Storage 10 | . 11 14 11 4 Protection 6 | . . . 18 2 Energy Gun 4 | . 28 3 . . Energy Cannon 4 | . . . 5 9 Ballistic Gun 7 | . . 10 11 . Ballistic Cannon 7 | . . 14 11 . Launcher 1 | . . . . 6 Slashing Weapon 1 | . . . . 7 Naked Turns . | . . . . . Heaviest Build 92 | 9 14 21 29 92 Greatest Support 40 | 20 20 40 40 40 Greatest Overweight (x) 30 | 2 . . 1 30 Average Overweight (x) . | . . . . . Largest Inventory Capacity 25 | 5 8 25 10 25 Average Capacity 7 | 5 7 8 8 7 Most Carried 8 | 5 8 8 8 7 Average Carried 6 | 3 6 7 7 4 Final Capacity 25 | 5 8 8 10 25 Final Carried 8 | 5 8 8 7 2 Class Distribution -------------------- 40% | Mutant 40% | Scavenger-Mutant 16% | Scavenger-Tank Dominant Class ---------------- Mutant | -10/Materials Scavenger-Mutant | -10/Mines Scavenger-Mutant | -9/Materials Mutant | -8/Materials Resources | -11 -10 -10 -9 -8 ----------- Run | Yrd Mat Min Mat Mat Matter Collected 1164 | 224 56 176 287 421 Remotely . | . . . . . Salvage Created 1503 | 15 154 159 586 589 Parts 102 | 4 11 10 46 31 Haulers Intercepted . | . . . . . Recyclers Shooed 1 | . . . . 1 Parts Field Recycled . | . . . . . Retrieved Matter . | . . . . . Parts Self-Destructed . | . . . . . Prevented . | . . . . . Kills | -11 -10 -10 -9 -8 ------- Run | Yrd Mat Min Mat Mat Combat Hostiles Destroyed 32 | . 5 2 12 13 Guns 7 | . 5 1 1 . Cannons 18 | . . 1 11 6 AOE 7 | . . . . 7 Classes Destroyed 10 | 1 3 2 3 1 Worker 4 | . 1 1 . 2 Builder 4 | . . . 2 2 Tunneler 1 | 1 . . . . Recycler 3 | . . 1 1 1 Operator 1 | . . . 1 . Watcher 8 | . 2 . 4 2 Swarmer 8 | . 5 . 3 . Grunt 17 | . . 2 6 9 Sentry 5 | . . . 3 2 Hunter 2 | . . . . 2 Best Kill Streak 7 | 1 3 2 5 7 Combat Bots Only 5 | . 3 2 3 5 Max Kills in Single Turn 2 | 1 1 1 2 2 Gunslinging . | . . . . . Exploded 1 | . . . . 1 Melee . | . . . . . Uniques/NPCs Destroyed . | . . . . . Combat | -11 -10 -10 -9 -8 -------- Run | Yrd Mat Min Mat Mat Hostile Shots Fired 269 | . 45 9 58 157 Missed 63 | . 9 1 17 36 Damage Taken 3243 | . 306 115 817 2005 Core 698 | . 69 27 50 552 Absorbed by Shields . | . . . . . Redirected to Shielding 51 | . . . 16 35 Core Remaining (%) 82 | 100 . 61 87 . Volleys Fired 131 | 1 28 15 40 47 Largest 3 | 2 2 2 3 3 Hottest 155 | 90 90 85 133 155 Shots Fired 266 | 2 54 30 103 77 Gun 118 | 2 54 15 40 7 Cannon 131 | . . 15 63 53 Launcher 17 | . . . . 17 Special . | . . . . . Kinetic 112 | . . 29 80 3 Thermal 137 | 2 54 1 23 57 Explosive 17 | . . . . 17 Electromagnetic . | . . . . . Robot Hit Streak 15 | 1 5 3 15 9 Robot Miss Streak 6 | . 6 3 4 5 Penetration Max . | . . . . . Secondary Targets . | . . . . . Shots Hit Robots 149 | 1 24 15 58 51 Core Hits 85 | 1 11 6 25 42 Critical Kills . | . . . . . Critical Parts Destroyed . | . . . . . Critical Strikes 5 | . 2 1 . 2 Burn 2 | . 2 . . . Blast 1 | . . 1 . . Sever 2 | . . . . 2 Melee Attacks 4 | . . . . 4 Impact . | . . . . . Slashing 4 | . . . . 4 Piercing . | . . . . . Sneak Attacks 1 | . . . . 1 Combat Hostiles . | . . . . . Follow-up Attacks . | . . . . . Damage Inflicted 3972 | 23 337 235 1260 2117 Guns 917 | 23 337 100 386 71 Cannons 1768 | . . 135 803 830 Explosions 1145 | . . . 71 1074 Melee 142 | . . . . 142 Ramming . | . . . . . Kinetic 1041 | . . 235 789 17 Thermal 1715 | 23 337 . 471 884 Explosive 1074 | . . . . 1074 Electromagnetic . | . . . . . Impact . | . . . . . Slashing 142 | . . . . 142 Piercing . | . . . . . Highest Corruption . | . . . . . Average Corruption . | . . . . . Corruption Purged . | . . . . . Corruption Blocked . | . . . . . Overload Shots . | . . . . . Overflow Damage 54 | . . . 31 23 Projectiles 20 | . . . 10 10 Explosions 34 | . . . 21 13 Melee . | . . . . . Knockbacks 4 | . . 1 3 . Impact . | . . . . . Kinetic 4 | . . 1 3 . Secondary . | . . . . . Self-Inflicted Damage 341 | . . . 225 116 Shots 7 | . . . 2 5 Rammed . | . . . . . Targets Rammed . | . . . . . Kicked . | . . . . . Crushed . | . . . . . Highest Temperature 512 | 30 180 81 333 512 Average Temperature 84 | 18 52 24 81 119 Received Heat Transfer 1299 | . 30 69 246 954 Effects 9 | . . . 1 8 Shutdowns 3 | . . . 1 2 Interference 2 | . . . . 2 Matter Decay 2 | . . . . 2 Damage (minor) 2 | . . . . 2 Siege Activations . | . . . . . Robots Corrupted . | . . . . . Combat Hostiles . | . . . . . Parts Fried . | . . . . . Impact Corruptions . | . . . . . Robots Melted . | . . . . . Combat Hostiles . | . . . . . Parts Melted 6 | . 2 . . 4 Heat Transferred 3222 | 62 1017 . 642 1501 Parts Sabotaged . | . . . . . Parts Stolen . | . . . . . Parts Stripped . | . . . . . Power Chain Reactions . | . . . . . Alert | -11 -10 -10 -9 -8 ------- Run | Yrd Mat Min Mat Mat Peak Influence 254 | 5 126 70 179 254 Initial 40 | . 3 19 27 40 Average 73 | . 65 35 71 139 Maximum Alert Level 1 | . . . . 1 Low Security (%) 96 | 100 100 100 100 84 Level 1 3 | . . . . 15 Level 2 . | . . . . . Level 3 . | . . . . . Level 4 . | . . . . . Level 5 . | . . . . . High Security . | . . . . . Max Security . | . . . . . Squads Dispatched 3 | . . . 1 2 Investigation . | . . . . . Extermination . | . . . . . Reinforcement 3 | . . . 1 2 Assault . | . . . . . Garrison . | . . . . . Intercept . | . . . . . Searches Triggered . | . . . . . Construction Impeded 1 | . . . 1 . Haulers Reinforced . | . . . . . Active Scanning Responses . | . . . . . Cargo Convoy Interrupts . | . . . . . Stealth | -11 -10 -10 -9 -8 --------- Run | Yrd Mat Min Mat Mat Distress Signals 4 | . . . 3 1 Communications Jammed . | . . . . . Distress Signals . | . . . . . Times Spotted 65 | . 17 2 21 25 Peak Tracking Total 8 | . 8 2 3 7 Tactical Retreats . | . . . . . Traps | -11 -10 -10 -9 -8 ------- Run | Yrd Mat Min Mat Mat Traps Triggered 1 | . . . 1 . Indirectly . | . . . . . Trap Hack Attempts . | . . . . . Triggered . | . . . . . Disarmed . | . . . . . Reprogrammed . | . . . . . Reused . | . . . . . Traps Extracted . | . . . . . Installed . | . . . . . Triggered . | . . . . . Machines | -11 -10 -10 -9 -8 ---------- Run | Yrd Mat Min Mat Mat Machines Disabled 6 | . 1 1 4 . Max in Single Turn 2 | . 1 1 2 . Machines Repaired . | . . . . . Machines Dismantled . | . . . . . Machines Sabotaged . | . . . . . Overloaded Fab Kills . | . . . . . Hacking | -11 -10 -10 -9 -8 --------- Run | Yrd Mat Min Mat Mat Machines Accessed 11 | . 2 . 6 3 Terminals 9 | . 2 . 4 3 Fabricators . | . . . . . Repair Stations 1 | . . . 1 . Recycling Units . | . . . . . Scanalyzers 1 | . . . 1 . Garrison Access . | . . . . . Total Hacks 33 | . 6 . 22 5 Successful 17 | . 2 . 12 3 Failed 16 | . 4 . 10 2 Catastrophic 4 | . . . 4 . Database Lockouts . | . . . . . Manual 9 | . 5 . 3 1 Terminals 28 | . 6 . 17 5 Fabricators . | . . . . . Repair Stations 1 | . . . 1 . Recycling Units . | . . . . . Scanalyzers 4 | . . . 4 . Garrison Access . | . . . . . Terminal Hacks 13 | . 2 . 8 3 Record 5 | . . . 4 1 Robot Analysis 2 | . . . 1 1 Alert Level 2 | . 1 . 1 . Unreport Threat 2 | . 1 . 1 . Maintenance Status 1 | . . . . 1 Registered Components 1 | . . . 1 . Fabricator Hacks . | . . . . . Repair Station Hacks 1 | . . . 1 . Scan Component 1 | . . . 1 . Recycling Unit Hacks . | . . . . . Scanalyzer 3 | . . . 3 . Insert Component 1 | . . . 1 . Analyze 2 | . . . 2 . Garrison Access Hacks . | . . . . . Unauthorized Hacks . | . . . . . Terminals . | . . . . . Fabricators . | . . . . . Repair Stations . | . . . . . Recycling Units . | . . . . . Scanalyzers . | . . . . . Garrison Access . | . . . . . Data Cores Recovered 1 | . . . 1 . Used . | . . . . . Hacking Detections 10 | . 2 . 5 3 Full Trace Events . | . . . . . Feedback Events . | . . . . . Feedback Blocked . | . . . . . Robot Schematics Acquired . | . . . . . Robots Built . | . . . . . Authchips . | . . . . . Time . | . . . . . Total Robot Build Rating . | . . . . . Part Schematics Acquired . | . . . . . Parts Built . | . . . . . Authchips . | . . . . . Time . | . . . . . Total Part Build Rating . | . . . . . Parts Repaired . | . . . . . Time . | . . . . . Parts Recycled . | . . . . . Recycled Matter . | . . . . . Retrieved Matter . | . . . . . Retrieved Components . | . . . . . Parts Scanalyzed 1 | . . . 1 . Part Schematics Acquired . | . . . . . Parts Damaged . | . . . . . Bothacking | -11 -10 -10 -9 -8 ------------ Run | Yrd Mat Min Mat Mat Used RIF Installer . | . . . . . Robots Hacked . | . . . . . Non-combat . | . . . . . Combat . | . . . . . Robot Hacks Applied . | . . . . . Relay Couplers Released . | . . . . . Fabnet Peak Effective % . | . . . . . Robots Rewired . | . . . . . Allies Hacked . | . . . . . Hacks Repelled . | . . . . . Allies | -11 -10 -10 -9 -8 -------- Run | Yrd Mat Min Mat Mat Total Allies . | . . . . . Largest Group . | . . . . . Highest-Rated Group . | . . . . . Highest-Rated Ally . | . . . . . Total Orders . | . . . . . Ally Attacks . | . . . . . Total Damage . | . . . . . Kills . | . . . . . Allies Corrupted . | . . . . . Allies Melted . | . . . . . Intel | -11 -10 -10 -9 -8 ------- Run | Yrd Mat Min Mat Mat Robot Analysis Total 2 | . . . 1 1 Derelict Logs Recovered . | . . . . . Drone Launches . | . . . . . Drone Recoveries . | . . . . . Exploration | -11 -10 -10 -9 -8 ------------- Run | Yrd Mat Min Mat Mat Turns Passed 2741 | 80 342 788 905 626 Spaces Moved 1478 | 54 211 477 455 281 Core 14 | 5 . . . 9 Treads 839 | . . 360 455 24 Legs 625 | 49 211 117 . 248 Wheels . | . . . . . Hover . | . . . . . Flight . | . . . . . Fastest Speed 50 | 50 120 120 160 120 Average Speed 151 | 117 120 150 164 162 Slowest Speed 1550 | 150 120 160 240 1550 Overloaded Moves . | . . . . . Propulsion Burnouts . | . . . . . Robots Hopped . | . . . . . Cave-ins Triggered . | . . . . . Exploration Rate (%) 38 | 4 46 74 39 27 Regions Visited 4 Branch Regions 1 Pre-discovered Areas 1 | . . 1 . . Known Exits Taken . | . . . . . Unknown Exits Taken 4 | 1 1 1 1 . Scrap Searched 1 | . . 1 . . Spaces Dug . | . . . . . Terrain Destroyed 172 | . 8 . 39 125 Melee . | . . . . . Projectile 26 | . . . 8 18 AOE 146 | . 8 . 31 107 Terrain Rammed . | . . . . . Walls Destroyed . | . . . . . Machines Disabled . | . . . . . Actions | -11 -10 -10 -9 -8 --------- Run | Yrd Mat Min Mat Mat Total 1735 | 65 247 520 525 378 Wait 29 | . . 6 11 12 Move 1474 | 53 210 476 454 281 Hop . | . . . . . Pick Up 25 | 5 5 7 3 5 Fast Attach 21 | 6 . . 7 8 Attach 16 | . 1 4 1 10 Detach . | . . . . . Swap 13 | . 1 5 2 5 Drop 22 | . 2 7 7 6 Fire 131 | 1 28 15 40 47 Melee 4 | . . . . 4 Ram . | . . . . . Kick . | . . . . . Crush . | . . . . . Escape Stasis . | . . . . . Rewire . | . . . . . Trap . | . . . . . Miscellaneous . | . . . . . Route ------- -11/Scrapyard -10/Materials -10/Mines -9/Materials (discovered 2 exits: *Mat / [*Min]) -8/Materials (discovered 2 exits: [*Sto x2]) History --------- Turn | Location | Event 7 | -11/Scrapyard | Discovered new exit (range 16) 81 | -11/Scrapyard | Entered Materials 134 | -10/Materials | Discovered new exit (range 11) 306 | -10/Materials | Build established: Mutant 423 | -10/Materials | Entered Mines 431 | -10/Mines | Met a Derelict bent on vengeance 550 | -10/Mines | Joined a pair of Derelicts in attacking an 0b10 outpost 731 | -10/Mines | Discovered new exit (range 5) 750 | -10/Mines | A weapon hastily lodged in a ceiling crevice suddenly fell to the ground 873 | -10/Mines | Build established: Scavenger-Mutant 1102 | -10/Mines | Learned location of Storage (-8) 1211 | -10/Mines | Entered Materials 1211 | -9/Materials | Evolved 2 slots: Utility x1, Weapon x1 1378 | -9/Materials | Discovered new exit (range 16) 1875 | -9/Materials | Discovered new exit (range 10) 1930 | -9/Materials | Build established: Scavenger-Tank 2116 | -9/Materials | Entered another Materials area 2116 | -8/Materials | Evolved 2 slots: Power x1, Propulsion x1 2116 | -8/Materials | Discovered new exit (range 12) 2252 | -8/Materials | Lost 9 parts (1p2n2u4w) 2469 | -8/Materials | Build established: Mutant 2607 | -8/Materials | Discovered new exit (range 6) 2622 | -8/Materials | Core integrity fell below 50% 2660 | -8/Materials | Lost 3 parts (2n1w) 2734 | -8/Materials | Core integrity fell below 20% 2742 | -8/Materials | Destroyed by G-47 Trooper with Particle Gun Last Messages --------------- H-55 Commando heat damages Lgt. Nuclear Core, Carbon-fiber Leg. Assault Rifle melted. H-55 Commando destroyed. Carbon-fiber Leg destroyed. Power failure, Lgt. Deuterium Engine shutdown. Power failure, Ion Engine shutdown. Overheating: Matter decay (-64). Plasma Cannon destroyed. Ion Engine destroyed. Overheating: Matter decay (-50). K-01 Serf collects debris. Acquired Propulsion Shielding. K-01 Serf collects debris. Acquired Huge Storage Unit. R-06 Scavenger collects Carbon-fiber Leg. The unstable cave ceiling collapses. Carbon-fiber Leg crushed. Lgt. Deuterium Engine destroyed. Critical hit (Burn: +37). Map ----- +----------------------------------------------------+ | ?????????????????????????????????????????????????? | | ?????????????????????????????????????????????????? | | ?????????????????????????????????????????????????? | | ?????????????????????????????????????????????????? | | ?????????????????????????????????????????????????? | | ?????????????????????????????????????????????????? | | ???????????????????????????H?????????????????????? | | ?????????????????????????????????????????????????? | | ?????????????????????????????????????????????????? | | ?????????????????????????????????????????????????? | | ?????????????????#???????????????????????????????? | | ????????????????? ???????????????????????????????? | | ???????????????? ""??????????????????????????????? | | ???????? ?????? """ #???????????????????????????? | | ???????? ?????? """ #???????????????????????????? | | ???????? #?????" ????????????????????????????? | | ???????? #????R" ?????????????????????????????? | | ??????## ##????" ??????????????????????????????? | | ????###" ##??? ???????????????????????????????? | | ????# #"#### #############???????????????????? | | ????## #### ???????????????????? | | ????## # ??????????????????? | | ????## # ??????????????????????? | | ????## # ######+####?????????????????????? | | ????## # ## !#?????????????????????? | | ?????# ## # #[ @ #?????????????????????? | | ?????# ##|#= [# #?????????????????????? | | ?????# = = ! = !%+ g#?????????????????????? | | ###### !!* # ###r%gg ; ???????????????????? | | *! % #?# ; ?????????????????? | | ######+### # ##?###;;+##+##+#????????????????? | | ## # #???### ?? ??????????????????? | | ## = ##[ #?????# ?? ?????????????????? | | ## ##!# # ## ?? #????????????????? | | ## """ """ ## ### ## ?? ???????????????? | | ## """ """ + < #? ?? ???????????????? | | ## """ """ ###### #? ?????????????????? | | ## #?????? #? ?????????????????? | | ##? ] #??????? ##? ###???????????????????? | | #??########???????? #?? #?????????????????????? | | #?## #??????????? ??? #?????????????????????? | | ### #######????????? ??????????????????????? | | ## # [ "T" #?????????????????????????????????? | | ##### #?????????????????????????????????? | | # /!! [#?????????????????????????????????? | | % # /! #?????????????????????????????????? | | + !! | #?????????????????????????????????? | | #% #?????????????????????????????????? | | % # #?????????????????????????????????? | | # ## #?????????????????????????????????? | +----------------------------------------------------+ Best States ------------- Heat Dissipation 41 Energy Generation 23 Energy Capacity 390 Matter Stores 300 Matter Capacity 300 Sight Range 16 Terrain Scan Density 10 Armor Coverage 225 Power Shielding 33 Propulsion Shielding 33 Evasion (%) 55 Recoil Reduction 2 Item Schematics ----------------- None Robot Schematics ------------------ None Fabricated ------------ Nothing Alien Tech Used ----------------- None Achievements -------------- None Challenges ------------ None Game ------ Seed SurveybotMassSheargun Manual? 0 Play Time 00:44:19 Cumulative 2.7 hours Start 2024.04.02 @ 18:00:19 End 2024.04.02 @ 18:59:32 Sessions 1 Manual Loads 0 Difficulty Rogue Special Mode None Game No. 5 Rogue 5 Adventurer 0 Explorer 0 Win Type - Total 0 Types 0/0/0/0/0/0/0/0/0 Lore% 2 Gallery% 6 Achievement% 5 Wizard Run 0 Options --------- Layout 1 ASCII 0 Keyboard 0 Movement Arrows Keybinds 0 Fullscreen 1 Font 24/Tamsyn Map View 50x35 Zoom Use 0% Tactical HUD 0 Map Filters NONE Filters NONE Steam 1 RUN: b6e950e5-fce1-40bd-8b09-7db5f158c94b